[Event "Rapid Tournament (RAP)"]
[Site "Biel, Switzerland"]
[Date "2026.07.12"]
[Round "6.9"]
[White "Gloeckler, Christian"]
[Black "Habibi, Ali"]
[Result "1-0"]
[TimeControl "15 + 5"]
[WhiteTitle "-"]
[BlackTitle "-"]
[WhiteFideId "34608966"]
[BlackFideId "4604393"]
[WhiteElo "2332"]
[BlackElo "2187"]

1. e4 {[%clk 00:15:07]} {[%emt 00:00:02]} c5 {[%clk 00:15:09]} {[%emt
00:00:01]} 2. Nf3 {[%clk 00:15:11]} {[%emt 00:00:03]} a6 {[%clk 00:15:14]} 3.
c3 {[%clk 00:15:14]} d5 {[%clk 00:15:17]} {[%emt 00:00:02]} 4. exd5 {[%clk
00:15:18]} Qxd5 {[%clk 00:15:21]} {[%emt 00:00:01]} 5. Be2 {[%clk 00:15:20]}
{[%emt 00:00:03]} e6 {[%clk 00:15:25]} {[%emt 00:00:01]} 6. O-O {[%clk
00:15:20]} {[%emt 00:00:05]} Nf6 {[%clk 00:15:29]} 7. Na3 {[%clk 00:15:21]}
{[%emt 00:00:05]} Be7 {[%clk 00:15:29]} {[%emt 00:00:05]} 8. Nc4 {[%clk
00:15:25]} {[%emt 00:00:02]} Qd8 {[%clk 00:15:26]} {[%emt 00:00:06]} 9. a4
{[%clk 00:15:13]} {[%emt 00:00:18]} O-O {[%clk 00:15:28]} {[%emt 00:00:04]} 10.
d4 {[%clk 00:15:13]} {[%emt 00:00:04]} cxd4 {[%clk 00:15:31]} {[%emt 00:00:03]}
11. Nxd4 {[%clk 00:15:12]} {[%emt 00:00:05]} Nbd7 {[%clk 00:15:32]} {[%emt
00:00:04]} 12. Bf3 {[%clk 00:14:23]} {[%emt 00:00:55]} Nd5 {[%clk 00:15:28]}
{[%emt 00:00:09]} 13. Qe2 {[%clk 00:14:12]} {[%emt 00:00:15]} N7f6 {[%clk
00:15:28]} {[%emt 00:00:05]} 14. Rd1 {[%clk 00:14:06]} {[%emt 00:00:11]} Qc7
{[%clk 00:15:33]} 15. a5 {[%clk 00:14:00]} {[%emt 00:00:12]} Bd7 {[%clk
00:15:29]} {[%emt 00:00:07]} 16. Ne5 {[%clk 00:13:21]} {[%emt 00:00:45]} Rad8
{[%clk 00:15:34]} 17. c4 {[%clk 00:12:19]} {[%emt 00:01:06]} Nb4 {[%clk
00:15:37]} {[%emt 00:00:02]} 18. Bf4 {[%clk 00:12:19]} {[%emt 00:00:05]} Qc8
{[%clk 00:15:42]} {[%emt 00:00:01]} 19. Rd2 {[%clk 00:11:29]} {[%emt 00:00:54]}
h6 {[%clk 00:15:40]} {[%emt 00:00:07]} 20. Rad1 {[%clk 00:11:24]} {[%emt
00:00:11]} Ba4 {[%clk 00:15:44]} {[%emt 00:00:01]} 21. b3 {[%clk 00:11:18]}
{[%emt 00:00:11]} Be8 {[%clk 00:15:38]} {[%emt 00:00:10]} 22. h3 {[%clk
00:11:01]} {[%emt 00:00:22]} Nd7 {[%clk 00:15:21]} {[%emt 00:00:22]} 23. Nxe6
{[%clk 00:09:51]} {[%emt 00:01:15]} fxe6 {[%clk 00:15:17]} {[%emt 00:00:09]} 24.
Nxd7 {[%clk 00:09:55]} {[%emt 00:00:02]} Rxf4 {[%clk 00:14:38]} {[%emt
00:00:44]} 25. Qxe6+ {[%clk 00:07:00]} {[%emt 00:03:00]} Kh8 {[%clk 00:14:32]}
{[%emt 00:00:09]} 26. Qxe7 {[%clk 00:06:53]} {[%emt 00:00:14]} Nc6 {[%clk
00:10:55]} {[%emt 00:03:42]} 27. Bxc6 {[%clk 00:06:47]} {[%emt 00:00:10]} bxc6
{[%clk 00:10:56]} {[%emt 00:00:04]} 28. Nf6 {[%clk 00:06:43]} {[%emt 00:00:09]}
Rxd2 {[%clk 00:10:47]} {[%emt 00:00:15]} 29. Qf8# {[%clk 00:06:46]} {[%emt
00:00:02]} 1-0

[Event "Rapid Tournament (RAP)"]
[Site "Biel, Switzerland"]
[Date "2026.07.12"]
[Round "6.10"]
[White "Gluckman, David"]
[Black "Lu, Miaoyi"]
[Result "0-1"]
[TimeControl "15 + 5"]
[WhiteTitle "-"]
[BlackTitle "-"]
[WhiteFideId "14300010"]
[BlackFideId "8618020"]
[WhiteElo "2161"]
[BlackElo "2309"]

1. e4 {[%clk 00:15:09]} {[%emt 00:00:01]} e5 {[%clk 00:15:08]} {[%emt
00:00:02]} 2. Nf3 {[%clk 00:15:11]} {[%emt 00:00:03]} Nc6 {[%clk 00:15:12]} 3.
Bb5 {[%clk 00:15:06]} {[%emt 00:00:11]} Nf6 {[%clk 00:15:12]} {[%emt 00:00:05]}
4. O-O {[%clk 00:14:20]} {[%emt 00:00:50]} Nxe4 {[%clk 00:15:15]} {[%emt
00:00:03]} 5. Re1 {[%clk 00:14:20]} {[%emt 00:00:04]} Nd6 {[%clk 00:15:19]}
{[%emt 00:00:02]} 6. Bxc6 {[%clk 00:14:23]} {[%emt 00:00:02]} dxc6 {[%clk
00:15:18]} {[%emt 00:00:06]} 7. Nxe5 {[%clk 00:14:27]} {[%emt 00:00:01]} Be7
{[%clk 00:15:10]} {[%emt 00:00:13]} 8. d3 {[%clk 00:14:21]} {[%emt 00:00:10]}
O-O {[%clk 00:15:12]} {[%emt 00:00:04]} 9. Nc3 {[%clk 00:13:34]} {[%emt
00:00:52]} Re8 {[%clk 00:15:13]} {[%emt 00:00:04]} 10. Bf4 {[%clk 00:13:37]}
{[%emt 00:00:02]} Bf8 {[%clk 00:14:27]} {[%emt 00:00:50]} 11. h3 {[%clk
00:13:25]} {[%emt 00:00:17]} Be6 {[%clk 00:14:01]} {[%emt 00:00:31]} 12. Qd2
{[%clk 00:12:23]} {[%emt 00:01:07]} Nf5 {[%clk 00:13:13]} {[%emt 00:00:53]} 13.
Nf3 {[%clk 00:12:14]} {[%emt 00:00:14]} f6 {[%clk 00:13:01]} {[%emt 00:00:17]}
14. Re2 {[%clk 00:12:00]} {[%emt 00:00:19]} Qd7 {[%clk 00:12:21]} {[%emt
00:00:46]} 15. Rae1 {[%clk 00:11:58]} {[%emt 00:00:06]} Bf7 {[%clk 00:12:17]}
{[%emt 00:00:09]} 16. Rxe8 {[%clk 00:11:48]} {[%emt 00:00:15]} Bxe8 {[%clk
00:12:07]} {[%emt 00:00:16]} 17. a3 {[%clk 00:11:27]} {[%emt 00:00:26]} Rd8
{[%clk 00:12:02]} {[%emt 00:00:09]} 18. Bh2 {[%clk 00:10:02]} {[%emt 00:01:30]}
c5 {[%clk 00:09:51]} {[%emt 00:02:16]} 19. Qf4 {[%clk 00:09:54]} {[%emt
00:00:13]} Bd6 {[%clk 00:09:05]} {[%emt 00:00:51]} 20. Qg4 {[%clk 00:09:00]}
{[%emt 00:00:58]} Kf8 {[%clk 00:06:49]} {[%emt 00:02:21]} 21. Ne4 {[%clk
00:07:41]} {[%emt 00:01:24]} h5 {[%clk 00:06:04]} {[%emt 00:00:50]} 22. Bxd6+
{[%clk 00:07:28]} {[%emt 00:00:18]} cxd6 {[%clk 00:06:08]} {[%emt 00:00:02]} 23.
Qf4 {[%clk 00:07:31]} Bf7 {[%clk 00:05:36]} {[%emt 00:00:37]} 24. g4 {[%clk
00:07:25]} {[%emt 00:00:12]} hxg4 {[%clk 00:04:53]} {[%emt 00:00:47]} 25. hxg4
{[%clk 00:07:29]} {[%emt 00:00:02]} Ne7 {[%clk 00:04:57]} 26. Ng3 {[%clk
00:06:11]} {[%emt 00:01:22]} Bd5 {[%clk 00:03:56]} {[%emt 00:01:07]} 27. Nh4
{[%clk 00:05:57]} {[%emt 00:00:19]} Kf7 {[%clk 00:03:40]} {[%emt 00:00:21]} 28.
g5 {[%clk 00:05:50]} {[%emt 00:00:12]} Rh8 {[%clk 00:03:22]} {[%emt 00:00:22]}
29. gxf6 {[%clk 00:05:27]} {[%emt 00:00:29]} gxf6 {[%clk 00:03:16]} {[%emt
00:00:11]} 30. Ne4 {[%clk 00:04:59]} {[%emt 00:00:33]} Bxe4 {[%clk 00:03:11]}
{[%emt 00:00:10]} 31. Qxe4 {[%clk 00:04:50]} {[%emt 00:00:14]} Rh5 {[%clk
00:02:22]} {[%emt 00:00:53]} 32. Re3 {[%clk 00:03:54]} {[%emt 00:01:02]} d5
{[%clk 00:01:57]} {[%emt 00:00:30]} 33. Qf4 {[%clk 00:03:47]} {[%emt 00:00:12]}
d4 {[%clk 00:01:55]} {[%emt 00:00:07]} 34. Rg3 {[%clk 00:03:39]} {[%emt
00:00:12]} Qe6 {[%clk 00:01:15]} {[%emt 00:00:46]} 35. Kf1 {[%clk 00:03:22]}
{[%emt 00:00:22]} Nd5 {[%clk 00:01:02]} {[%emt 00:00:17]} 36. Qb8 {[%clk
00:02:46]} {[%emt 00:00:41]} Ne7 {[%clk 00:00:31]} {[%emt 00:00:37]} 37. Qf4
{[%clk 00:02:29]} {[%emt 00:00:22]} b6 {[%clk 00:00:09]} {[%emt 00:00:27]} 38.
Nf3 {[%clk 00:02:08]} {[%emt 00:00:25]} Qf5 {[%clk 00:00:08]} {[%emt 00:00:07]}
39. Rg4 {[%clk 00:01:52]} {[%emt 00:00:21]} Nd5 {[%clk 00:00:08]} {[%emt
00:00:05]} 40. Qxf5 {[%clk 00:01:43]} {[%emt 00:00:15]} Rxf5 {[%clk 00:00:11]}
{[%emt 00:00:01]} 41. Rg3 {[%clk 00:01:42]} {[%emt 00:00:05]} Nf4 {[%clk
00:00:08]} {[%emt 00:00:09]} 42. Nd2 {[%clk 00:01:38]} {[%emt 00:00:09]} Re5
{[%clk 00:00:08]} {[%emt 00:00:05]} 43. Ne4 {[%clk 00:01:40]} {[%emt 00:00:02]}
f5 {[%clk 00:00:11]} {[%emt 00:00:03]} 44. Ng5+ {[%clk 00:01:43]} {[%emt
00:00:02]} Kf6 {[%clk 00:00:12]} {[%emt 00:00:03]} 45. Nf3 {[%clk 00:01:46]}
{[%emt 00:00:02]} Re2 {[%clk 00:00:13]} {[%emt 00:00:05]} 46. Ne1 {[%clk
00:01:44]} {[%emt 00:00:07]} Rd2 {[%clk 00:00:15]} {[%emt 00:00:02]} 47. Rf3
{[%clk 00:01:33]} {[%emt 00:00:17]} Ke5 {[%clk 00:00:12]} {[%emt 00:00:08]} 48.
Rg3 {[%clk 00:01:37]} Rd1 {[%emt 00:00:12]} 49. Rg8 {[%clk 00:01:34]} Rb1
{[%clk 00:00:12]} {[%emt 00:00:08]} 50. b3 {[%clk 00:01:37]} Nh3 {[%clk
00:00:11]} {[%emt 00:00:05]} 51. Ke2 {[%clk 00:01:31]} {[%emt 00:00:11]} Nf4+
{[%clk 00:00:11]} {[%emt 00:00:05]} 52. Kd2 {[%clk 00:01:35]} {[%emt 00:00:02]}
Nd5 {[%clk 00:00:12]} {[%emt 00:00:03]} 53. Nf3+ {[%clk 00:01:22]} {[%emt
00:00:19]} Kf4 {[%clk 00:00:15]} {[%emt 00:00:02]} 54. Ng5 {[%clk 00:01:25]}
{[%emt 00:00:01]} Nc3 {[%clk 00:00:16]} {[%emt 00:00:05]} 55. Nh3+ {[%clk
00:01:25]} {[%emt 00:00:05]} Ke5 {[%clk 00:00:17]} {[%emt 00:00:04]} 56. Re8+
{[%clk 00:01:28]} {[%emt 00:00:02]} Kf6 {[%clk 00:00:09]} {[%emt 00:00:13]} 57.
Re1 {[%clk 00:01:32]} {[%emt 00:00:01]} b5 {[%clk 00:00:07]} {[%emt 00:00:07]}
58. Rc1 {[%clk 00:01:00]} {[%emt 00:00:37]} Ke5 {[%clk 00:00:08]} {[%emt
00:00:04]} 59. f4+ {[%clk 00:01:03]} {[%emt 00:00:02]} Kf6 {[%clk 00:00:11]}
{[%emt 00:00:02]} 60. Ng5 {[%clk 00:00:59]} {[%emt 00:00:08]} Rxc1 {[%clk
00:00:14]} {[%emt 00:00:03]} 61. Kxc1 {[%clk 00:01:03]} Ne2+ {[%clk 00:00:18]}
62. Kd2 {[%clk 00:01:05]} {[%emt 00:00:02]} Nxf4 {[%clk 00:00:22]} {[%emt
00:00:02]} 0-1

[Event "Rapid Tournament (RAP)"]
[Site "Biel, Switzerland"]
[Date "2026.07.12"]
[Round "6.11"]
[White "Villiger, Jan"]
[Black "Balabayeva, Xeniya"]
[Result "0-1"]
[TimeControl "15 + 5"]
[WhiteTitle "-"]
[BlackTitle "-"]
[WhiteFideId "1340891"]
[BlackFideId "13719688"]
[WhiteElo "1846"]
[BlackElo "2291"]

1. e4 {[%clk 00:15:09]} {[%emt 00:00:01]} c6 {[%clk 00:15:08]} {[%emt
00:00:03]} 2. d4 {[%clk 00:15:12]} {[%emt 00:00:03]} d5 {[%clk 00:15:12]} 3. e5
{[%clk 00:15:13]} {[%emt 00:00:03]} Bf5 {[%clk 00:15:16]} {[%emt 00:00:01]} 4.
Nd2 {[%clk 00:15:15]} {[%emt 00:00:04]} e6 {[%clk 00:15:18]} {[%emt 00:00:02]}
5. Nb3 {[%clk 00:15:19]} {[%emt 00:00:01]} Nd7 {[%clk 00:15:18]} {[%emt
00:00:06]} 6. Nf3 {[%clk 00:15:21]} {[%emt 00:00:02]} h6 {[%clk 00:15:05]}
{[%emt 00:00:18]} 7. Be2 {[%clk 00:15:19]} {[%emt 00:00:07]} Ne7 {[%clk
00:14:51]} {[%emt 00:00:19]} 8. O-O {[%clk 00:15:04]} {[%emt 00:00:19]} a6
{[%clk 00:14:49]} {[%emt 00:00:08]} 9. a4 {[%clk 00:15:07]} {[%emt 00:00:02]}
Qc7 {[%clk 00:14:40]} {[%emt 00:00:14]} 10. Be3 {[%clk 00:13:53]} {[%emt
00:01:19]} Bh7 {[%clk 00:14:28]} {[%emt 00:00:17]} 11. a5 {[%clk 00:13:40]}
{[%emt 00:00:19]} Nf5 {[%clk 00:14:16]} {[%emt 00:00:17]} 12. c4 {[%clk
00:13:27]} {[%emt 00:00:17]} dxc4 {[%clk 00:13:38]} {[%emt 00:00:43]} 13. Bxc4
{[%clk 00:13:30]} {[%emt 00:00:02]} Be7 {[%clk 00:13:35]} {[%emt 00:00:08]} 14.
Qe2 {[%clk 00:12:34]} {[%emt 00:01:01]} Nxe3 {[%clk 00:11:26]} {[%emt
00:02:14]} 15. fxe3 {[%clk 00:09:32]} {[%emt 00:03:06]} O-O {[%clk 00:11:19]}
{[%emt 00:00:13]} 16. Rac1 {[%clk 00:09:08]} {[%emt 00:00:29]} Rad8 {[%clk
00:10:45]} {[%emt 00:00:40]} 17. Rfd1 {[%clk 00:08:12]} {[%emt 00:01:01]} Bb4
{[%clk 00:10:15]} {[%emt 00:00:35]} 18. Ra1 {[%clk 00:08:11]} {[%emt 00:00:06]}
c5 {[%clk 00:09:16]} {[%emt 00:01:04]} 19. Rdc1 {[%clk 00:08:11]} {[%emt
00:00:04]} Qb8 {[%clk 00:06:55]} {[%emt 00:02:26]} 20. Ra4 {[%clk 00:07:24]}
{[%emt 00:00:52]} Rc8 {[%clk 00:06:31]} {[%emt 00:00:29]} 21. Ne1 {[%clk
00:03:36]} {[%emt 00:03:53]} b5 {[%clk 00:04:25]} {[%emt 00:02:12]} 22. axb6
{[%clk 00:03:16]} {[%emt 00:00:25]} Nxb6 {[%clk 00:04:28]} {[%emt 00:00:01]} 23.
Rxa6 {[%clk 00:02:43]} {[%emt 00:00:37]} Nxc4 {[%clk 00:03:56]} {[%emt
00:00:38]} 24. Rxc4 {[%clk 00:02:20]} {[%emt 00:00:29]} Bxe1 {[%clk 00:03:57]}
{[%emt 00:00:03]} 25. Nxc5 {[%clk 00:02:03]} {[%emt 00:00:22]} Bb4 {[%emt
00:03:25]} 26. Nd7 {[%clk 00:00:34]} Qb5 {[%clk 00:00:44]} {[%emt 00:01:33]} 27.
Rxc8 {[%clk 00:00:27]} {[%emt 00:00:12]} Qxe2 {[%clk 00:00:46]} {[%emt
00:00:02]} 28. Rxf8+ {[%clk 00:00:30]} Bxf8 {[%clk 00:00:50]} {[%emt 00:00:03]}
0-1

[Event "Rapid Tournament (RAP)"]
[Site "Biel, Switzerland"]
[Date "2026.07.12"]
[Round "6.12"]
[White "Amonatov, Farrukh"]
[Black "Xu, Chang(Cq)"]
[Result "1/2-1/2"]
[TimeControl "15 + 5"]
[WhiteTitle "-"]
[BlackTitle "-"]
[WhiteFideId "14700077"]
[BlackFideId "8641757"]
[WhiteElo "2593"]
[BlackElo "2082"]

1. e4 {[%clk 00:14:59]} {[%emt 00:00:10]} c5 {[%clk 00:15:03]} {[%emt
00:00:04]} 2. Nf3 {[%clk 00:15:02]} {[%emt 00:00:05]} d6 {[%clk 00:15:06]}
{[%emt 00:00:02]} 3. d4 {[%clk 00:15:06]} cxd4 {[%clk 00:15:08]} {[%emt
00:00:03]} 4. Nxd4 {[%clk 00:15:10]} Nf6 {[%clk 00:15:11]} {[%emt 00:00:02]} 5.
Nc3 {[%clk 00:15:14]} a6 {[%clk 00:15:15]} {[%emt 00:00:02]} 6. Bc4 {[%clk
00:15:16]} {[%emt 00:00:03]} e6 {[%clk 00:15:18]} {[%emt 00:00:02]} 7. a3
{[%clk 00:15:19]} {[%emt 00:00:02]} Be7 {[%clk 00:15:11]} {[%emt 00:00:11]} 8.
Ba2 {[%clk 00:15:23]} {[%emt 00:00:03]} b5 {[%clk 00:15:03]} {[%emt 00:00:13]}
9. Be3 {[%clk 00:15:16]} {[%emt 00:00:11]} O-O {[%clk 00:15:00]} {[%emt
00:00:09]} 10. g4 {[%clk 00:15:11]} {[%emt 00:00:09]} Bb7 {[%clk 00:14:18]}
{[%emt 00:00:47]} 11. f3 {[%clk 00:15:12]} {[%emt 00:00:05]} Nfd7 {[%clk
00:13:24]} {[%emt 00:00:59]} 12. Qe2 {[%clk 00:15:02]} {[%emt 00:00:14]} Nc6
{[%clk 00:13:23]} {[%emt 00:00:07]} 13. O-O-O {[%clk 00:15:04]} {[%emt
00:00:02]} Rc8 {[%clk 00:12:52]} {[%emt 00:00:37]} 14. Kb1 {[%clk 00:14:58]}
{[%emt 00:00:10]} Na5 {[%clk 00:12:24]} {[%emt 00:00:33]} 15. Qe1 {[%clk
00:13:10]} {[%emt 00:01:54]} Nc4 {[%clk 00:12:18]} {[%emt 00:00:10]} 16. Bxc4
{[%clk 00:13:13]} {[%emt 00:00:02]} Rxc4 {[%clk 00:11:56]} {[%emt 00:00:27]} 17.
h4 {[%clk 00:12:55]} {[%emt 00:00:23]} Qc7 {[%clk 00:10:50]} {[%emt 00:01:11]}
18. Bg5 {[%clk 00:12:47]} {[%emt 00:00:13]} Ne5 {[%clk 00:10:12]} {[%emt
00:00:43]} 19. Bxe7 {[%clk 00:12:49]} {[%emt 00:00:03]} Qxe7 {[%clk 00:10:14]}
{[%emt 00:00:03]} 20. Qe3 {[%clk 00:11:55]} {[%emt 00:00:59]} Rfc8 {[%clk
00:10:03]} {[%emt 00:00:16]} 21. Nce2 {[%clk 00:11:58]} {[%emt 00:00:01]} R4c7
{[%clk 00:09:41]} {[%emt 00:00:27]} 22. b3 {[%clk 00:10:50]} {[%emt 00:01:13]}
Nc6 {[%clk 00:09:19]} {[%emt 00:00:28]} 23. Nxc6 {[%clk 00:10:44]} {[%emt
00:00:11]} Rxc6 {[%clk 00:09:07]} {[%emt 00:00:16]} 24. Rd2 {[%clk 00:10:20]}
{[%emt 00:00:30]} R6c7 {[%clk 00:08:37]} {[%emt 00:00:35]} 25. Kb2 {[%clk
00:08:52]} {[%emt 00:01:33]} Qf6+ {[%clk 00:08:01]} {[%emt 00:00:41]} 26. Kb1
{[%clk 00:08:56]} {[%emt 00:00:01]} Qe7 {[%clk 00:07:49]} {[%emt 00:00:17]} 27.
Rhd1 {[%clk 00:06:46]} {[%emt 00:02:15]} d5 {[%clk 00:07:37]} {[%emt 00:00:17]}
28. exd5 {[%clk 00:06:49]} {[%emt 00:00:02]} Bxd5 {[%clk 00:07:34]} {[%emt
00:00:08]} 29. Nf4 {[%clk 00:06:51]} {[%emt 00:00:03]} Bb7 {[%clk 00:06:10]}
{[%emt 00:01:30]} 30. g5 {[%clk 00:06:22]} {[%emt 00:00:33]} g6 {[%clk
00:05:41]} {[%emt 00:00:34]} 31. Nd3 {[%clk 00:02:30]} {[%emt 00:03:57]} Qxa3
{[%clk 00:04:20]} {[%emt 00:01:26]} 32. Ne5 {[%clk 00:02:34]} {[%emt 00:00:01]}
Bd5 {[%clk 00:03:09]} {[%emt 00:01:16]} 33. Ng4 {[%clk 00:02:38]} {[%emt
00:00:02]} Qc5 {[%clk 00:02:20]} {[%emt 00:00:54]} 34. Nf6+ {[%clk 00:00:16]}
{[%emt 00:02:27]} Kh8 {[%clk 00:02:21]} {[%emt 00:00:03]} 35. Qe5 {[%clk
00:00:13]} {[%emt 00:00:09]} Qc3 {[%clk 00:02:06]} {[%emt 00:00:20]} 36. Qxc3
{[%clk 00:00:13]} {[%emt 00:00:04]} Rxc3 {[%clk 00:02:07]} {[%emt 00:00:05]} 37.
f4 {[%clk 00:00:17]} Rf3 {[%clk 00:01:54]} {[%emt 00:00:18]} 38. Rd4 {[%clk
00:00:15]} {[%emt 00:00:06]} Rf2 {[%clk 00:01:55]} {[%emt 00:00:04]} 39. c4
{[%clk 00:00:14]} {[%emt 00:00:06]} bxc4 {[%clk 00:01:26]} {[%emt 00:00:34]} 40.
bxc4 {[%clk 00:00:18]} {[%emt 00:00:01]} Rb8+ {[%clk 00:00:50]} {[%emt
00:00:42]} 41. Ka1 {[%clk 00:00:07]} {[%emt 00:00:16]} Rf3 {[%clk 00:00:21]}
{[%emt 00:00:34]} 42. R1d3 {[%clk 00:00:09]} {[%emt 00:00:03]} Rxd3 {[%clk
00:00:21]} {[%emt 00:00:05]} 43. Rxd3 {[%clk 00:00:13]} {[%emt 00:00:01]} Bxc4
{[%clk 00:00:20]} {[%emt 00:00:05]} 44. Rd7 {[%clk 00:00:18]} {[%emt 00:00:01]}
Kg7 {[%clk 00:00:18]} {[%emt 00:00:07]} 45. Ng4 {[%clk 00:00:22]} e5 {[%clk
00:00:09]} {[%emt 00:00:15]} 46. Nxe5 {[%clk 00:00:26]} Be6 {[%emt 00:00:03]}
47. Rd4 {[%clk 00:00:29]} a5 {[%clk 00:00:15]} {[%emt 00:00:04]} 48. Nc6 {[%clk
00:00:27]} {[%emt 00:00:06]} Rb5 {[%clk 00:00:08]} {[%emt 00:00:12]} 49. Ra4
{[%clk 00:00:23]} {[%emt 00:00:09]} Rc5 {[%clk 00:00:07]} {[%emt 00:00:06]} 50.
Nxa5 {[%clk 00:00:23]} {[%emt 00:00:05]} h6 {[%clk 00:00:08]} {[%emt 00:00:04]}
51. Kb2 {[%clk 00:00:25]} {[%emt 00:00:03]} hxg5 {[%clk 00:00:08]} {[%emt
00:00:04]} 52. hxg5 {[%clk 00:00:29]} {[%emt 00:00:02]} Bd7 {[%clk 00:00:11]}
{[%emt 00:00:02]} 53. Ra3 {[%clk 00:00:33]} Rb5+ {[%clk 00:00:12]} {[%emt
00:00:04]} 54. Kc3 {[%clk 00:00:35]} {[%emt 00:00:02]} Rf5 {[%clk 00:00:14]}
{[%emt 00:00:04]} 55. Nc4 {[%clk 00:00:13]} {[%emt 00:00:27]} Rxf4 {[%clk
00:00:16]} {[%emt 00:00:03]} 56. Ra5 {[%clk 00:00:14]} {[%emt 00:00:04]} Be6
{[%clk 00:00:14]} {[%emt 00:00:06]} 57. Nd6 {[%clk 00:00:12]} {[%emt 00:00:07]}
Kf8 {[%clk 00:00:13]} {[%emt 00:00:07]} 58. Kd3 {[%clk 00:00:10]} {[%emt
00:00:08]} Ke7 {[%clk 00:00:15]} {[%emt 00:00:02]} 59. Ke3 {[%clk 00:00:14]}
{[%emt 00:00:01]} Rf1 {[%clk 00:00:18]} {[%emt 00:00:02]} 60. Ne4 {[%clk
00:00:17]} {[%emt 00:00:02]} Re1+ {[%clk 00:00:17]} {[%emt 00:00:06]} 61. Kf4
{[%clk 00:00:21]} {[%emt 00:00:01]} Rf1+ {[%clk 00:00:19]} {[%emt 00:00:03]} 62.
Ke3 {[%clk 00:00:25]} {[%emt 00:00:01]} Rg1 {[%clk 00:00:11]} {[%emt 00:00:13]}
63. Ra7+ {[%clk 00:00:17]} {[%emt 00:00:12]} Kf8 {[%clk 00:00:10]} {[%emt
00:00:06]} 64. Nf6 {[%clk 00:00:21]} {[%emt 00:00:02]} Kg7 {[%clk 00:00:10]}
{[%emt 00:00:05]} 65. Kf4 {[%clk 00:00:22]} {[%emt 00:00:04]} Rf1+ {[%clk
00:00:12]} {[%emt 00:00:03]} 66. Kg3 {[%clk 00:00:10]} {[%emt 00:00:17]} Rf5
{[%clk 00:00:13]} {[%emt 00:00:04]} 67. Kh4 {[%clk 00:00:14]} {[%emt 00:00:01]}
Rf4+ {[%clk 00:00:12]} {[%emt 00:00:06]} 68. Kg3 {[%clk 00:00:18]} Rxf6 {[%clk
00:00:13]} {[%emt 00:00:04]} 69. gxf6+ {[%clk 00:00:22]} Kxf6 {[%clk 00:00:16]}
{[%emt 00:00:02]} 70. Ra5 {[%clk 00:00:22]} {[%emt 00:00:05]} g5 {[%clk
00:00:19]} {[%emt 00:00:02]} 71. Rb5 {[%clk 00:00:25]} {[%emt 00:00:02]} Kg6
{[%clk 00:00:18]} {[%emt 00:00:05]} 72. Rb6 {[%clk 00:00:29]} Kh5 {[%clk
00:00:10]} {[%emt 00:00:13]} 73. Ra6 {[%clk 00:00:31]} {[%emt 00:00:03]} Bc4
{[%clk 00:00:13]} {[%emt 00:00:03]} 74. Rf6 {[%clk 00:00:34]} {[%emt 00:00:02]}
Be6 {[%clk 00:00:14]} {[%emt 00:00:03]} 75. Kg2 {[%clk 00:00:37]} {[%emt
00:00:02]} Kg4 {[%clk 00:00:15]} {[%emt 00:00:04]} 76. Kh2 {[%clk 00:00:39]}
{[%emt 00:00:03]} Kh5 {[%clk 00:00:16]} {[%emt 00:00:05]} 77. Kg3 {[%clk
00:00:43]} {[%emt 00:00:01]} Bd5 {[%clk 00:00:13]} {[%emt 00:00:08]} 78. Kh3
{[%clk 00:00:46]} {[%emt 00:00:01]} g4+ {[%clk 00:00:11]} {[%emt 00:00:09]} 79.
Kg3 {[%clk 00:00:49]} Kg5 {[%clk 00:00:15]} {[%emt 00:00:02]} 80. Ra6 {[%clk
00:00:39]} {[%emt 00:00:14]} f5 {[%clk 00:00:17]} {[%emt 00:00:03]} 81. Ra5
{[%clk 00:00:43]} {[%emt 00:00:01]} 1/2-1/2